[Event "Betsys MČR v online bleskovém šachu 2021"]
[Site "Chess.com"]
[Date "2021.04.17"]
[Round "2"]
[White "maelic"]
[Black "Richter_Rudolf"]
[Result "1-0"]
[WhiteElo "1781"]
[BlackElo "1304"]
[TimeControl "180+1"]
[EndTime "9:14:51 PDT"]
[Termination "Uživatel maelic zvítězil po vzdání soupeře"]

1. d4 {[%clk 0:03:00.9]} 1... d5 {[%clk 0:02:58.2]} 2. Bf4 {[%clk 0:03:00]} 2...
Nf6 {[%clk 0:02:36.7]} 3. e3 {[%clk 0:03:00.1]} 3... Bf5 {[%clk 0:02:34.9]} 4.
c4 {[%clk 0:03:00]} 4... e6 {[%clk 0:02:34.4]} 5. Qb3 {[%clk 0:02:59.6]} 5... b6
{[%clk 0:02:25.8]} 6. Nc3 {[%clk 0:02:58.9]} 6... c5 {[%clk 0:02:19]} 7. cxd5
{[%clk 0:02:49.7]} 7... exd5 {[%clk 0:02:01.5]} 8. Bb5+ {[%clk 0:02:47.7]} 8...
Bd7 {[%clk 0:01:56.2]} 9. Nxd5 {[%clk 0:02:29]} 9... Nxd5 {[%clk 0:01:44.2]} 10.
Qxd5 {[%clk 0:02:27.4]} 10... Bxb5 {[%clk 0:01:43.9]} 11. Qxa8 {[%clk
0:02:27.4]} 11... Bd6 {[%clk 0:01:31.9]} 12. Qe4+ {[%clk 0:02:13.6]} 12... Kf8
{[%clk 0:01:14.5]} 13. Nf3 {[%clk 0:02:04.5]} 13... Bc6 {[%clk 0:01:11.7]} 14.
d5 {[%clk 0:02:04.3]} 14... Bxf4 {[%clk 0:01:09.4]} 15. dxc6 {[%clk 0:01:57.3]}
15... Qd6 {[%clk 0:01:04.4]} 16. Qxf4 {[%clk 0:01:53.1]} 16... Qxf4 {[%clk
0:00:39.2]} 17. exf4 {[%clk 0:01:54]} 17... Nxc6 {[%clk 0:00:38.8]} 18. O-O-O
{[%clk 0:01:54.1]} 18... Ke7 {[%clk 0:00:36.8]} 19. Rhe1+ {[%clk 0:01:53.7]}
19... Kf6 {[%clk 0:00:35.4]} 20. Rd6+ {[%clk 0:01:52.3]} 1-0

[Event "Betsys MČR v online bleskovém šachu 2021"]
[Site "Chess.com"]
[Date "2021.04.17"]
[Round "2"]
[White "hvanacek"]
[Black "jsebesta"]
[Result "0-1"]
[WhiteElo "957"]
[BlackElo "1619"]
[TimeControl "180+1"]
[EndTime "9:14:56 PDT"]
[Termination "Uživatel jsebesta zvítězil matem"]

1. e4 {[%clk 0:03:00.9]} 1... Nc6 {[%clk 0:02:59.8]} 2. b3 {[%clk 0:03:01.1]}
2... e5 {[%clk 0:02:57.5]} 3. Bb2 {[%clk 0:03:00.9]} 3... d6 {[%clk 0:02:56.8]}
4. Nf3 {[%clk 0:02:59.8]} 4... Nf6 {[%clk 0:02:55.4]} 5. Nc3 {[%clk 0:02:54.3]}
5... Bg4 {[%clk 0:02:54]} 6. Bb5 {[%clk 0:02:54.2]} 6... a6 {[%clk 0:02:50]} 7.
Bxc6+ {[%clk 0:02:51.3]} 7... bxc6 {[%clk 0:02:50.2]} 8. d3 {[%clk 0:02:50.6]}
8... d5 {[%clk 0:02:37.3]} 9. Qd2 {[%clk 0:02:41.7]} 9... d4 {[%clk 0:02:29.8]}
10. Na4 {[%clk 0:02:36.2]} 10... Bxf3 {[%clk 0:02:26]} 11. gxf3 {[%clk
0:02:35.4]} 11... Nh5 {[%clk 0:02:23.7]} 12. O-O-O {[%clk 0:02:33.3]} 12... Nf4
{[%clk 0:02:21.9]} 13. Nc5 {[%clk 0:02:25.4]} 13... Bxc5 {[%clk 0:02:20]} 14.
Rhg1 {[%clk 0:02:13.8]} 14... g6 {[%clk 0:02:04.4]} 15. c4 {[%clk 0:02:04]}
15... a5 {[%clk 0:02:01.4]} 16. Rg4 {[%clk 0:01:55.1]} 16... Bb4 {[%clk
0:01:51.1]} 17. Qc2 {[%clk 0:01:45.1]} 17... h5 {[%clk 0:01:38.9]} 18. Rg5
{[%clk 0:01:43.7]} 18... Qxg5 {[%clk 0:01:38.3]} 19. Rf1 {[%clk 0:01:23.1]}
19... Nxd3+ {[%clk 0:01:31.9]} 20. Kd1 {[%clk 0:01:15.5]} 20... Nxb2+ {[%clk
0:01:31.8]} 21. Ke2 {[%clk 0:01:06.2]} 21... d3+ {[%clk 0:01:31]} 22. Qxd3
{[%clk 0:01:00.9]} 22... Nxd3 {[%clk 0:01:30.8]} 23. Kd1 {[%clk 0:00:56.7]}
23... Qd2# {[%clk 0:01:30.6]} 0-1

[Event "Betsys MČR v online bleskovém šachu 2021"]
[Site "Chess.com"]
[Date "2021.04.17"]
[Round "2"]
[White "marosino"]
[Black "MaTpAt113"]
[Result "1-0"]
[WhiteElo "1590"]
[BlackElo "849"]
[TimeControl "180+1"]
[EndTime "9:14:57 PDT"]
[Termination "Uživatel marosino zvítězil po vzdání soupeře"]

1. b3 {[%clk 0:03:00.9]} 1... c6 {[%clk 0:03:00.9]} 2. Bb2 {[%clk 0:03:00.5]}
2... d5 {[%clk 0:02:58.3]} 3. g3 {[%clk 0:03:00.4]} 3... Bf5 {[%clk 0:02:54.5]}
4. Bg2 {[%clk 0:02:58.2]} 4... e6 {[%clk 0:02:48.1]} 5. Nf3 {[%clk 0:02:57.5]}
5... Nf6 {[%clk 0:02:42.8]} 6. O-O {[%clk 0:02:56.8]} 6... Bd6 {[%clk
0:02:41.7]} 7. d3 {[%clk 0:02:55.6]} 7... O-O {[%clk 0:02:39.7]} 8. Re1 {[%clk
0:02:54.4]} 8... Qb6 {[%clk 0:02:29]} 9. Nbd2 {[%clk 0:02:50.7]} 9... Bc5 {[%clk
0:02:26.7]} 10. d4 {[%clk 0:02:48.7]} 10... Bd6 {[%clk 0:02:20.7]} 11. Ne5
{[%clk 0:02:36.8]} 11... Be4 {[%clk 0:01:59.7]} 12. Ndf3 {[%clk 0:02:28.8]}
12... Bxf3 {[%clk 0:00:55.7]} 13. exf3 {[%clk 0:02:25.2]} 13... Bxe5 {[%clk
0:00:50.9]} 14. dxe5 {[%clk 0:02:24.6]} 14... Nfd7 {[%clk 0:00:50.8]} 15. f4
{[%clk 0:02:22]} 15... Nc5 {[%clk 0:00:49.1]} 16. Bd4 {[%clk 0:02:17.6]} 16...
Qb4 {[%clk 0:00:38.5]} 17. a3 {[%clk 0:02:14]} 17... Qa5 {[%clk 0:00:34.3]} 18.
b4 {[%clk 0:02:12.3]} 18... Qb5 {[%clk 0:00:32.3]} 19. Bxc5 {[%clk 0:02:09.7]}
19... Rd8 {[%clk 0:00:25.5]} 20. a4 {[%clk 0:02:07.7]} 20... Qc4 {[%clk
0:00:22.3]} 21. Bf1 {[%clk 0:02:05.7]} 21... Qe4 {[%clk 0:00:21]} 22. Rxe4
{[%clk 0:02:04.5]} 1-0

[Event "Betsys MČR v online bleskovém šachu 2021"]
[Site "Chess.com"]
[Date "2021.04.17"]
[Round "2"]
[White "bumurubac"]
[Black "Federer302"]
[Result "0-1"]
[WhiteElo "1015"]
[BlackElo "1639"]
[TimeControl "180+1"]
[EndTime "9:15:01 PDT"]
[Termination "Uživatel Federer302 zvítězil matem"]

1. e4 {[%clk 0:03:00.9]} 1... c5 {[%clk 0:02:59.3]} 2. Bc4 {[%clk 0:03:00]} 2...
g6 {[%clk 0:02:58.7]} 3. Qf3 {[%clk 0:02:58.4]} 3... e6 {[%clk 0:02:49.1]} 4.
Nh3 {[%clk 0:02:56.6]} 4... Nc6 {[%clk 0:02:43.1]} 5. d3 {[%clk 0:02:55.7]} 5...
Ne5 {[%clk 0:02:34.7]} 6. Qf4 {[%clk 0:02:52.7]} 6... Nxc4 {[%clk 0:02:27.7]} 7.
Ng5 {[%clk 0:02:51.1]} 7... Nh6 {[%clk 0:01:57.8]} 8. b3 {[%clk 0:02:41.3]} 8...
Qa5+ {[%clk 0:01:50.2]} 9. Bd2 {[%clk 0:02:34]} 9... Nxd2 {[%clk 0:01:48.8]} 10.
Qxd2 {[%clk 0:02:33.4]} 10... Qxd2+ {[%clk 0:01:48.6]} 11. Nxd2 {[%clk
0:02:31.8]} 11... Bg7 {[%clk 0:01:47.5]} 12. O-O-O {[%clk 0:02:29.5]} 12... O-O
{[%clk 0:01:41.8]} 13. Ngf3 {[%clk 0:02:28.3]} 13... Ng4 {[%clk 0:01:40]} 14.
Rhf1 {[%clk 0:02:22.2]} 14... d5 {[%clk 0:01:37]} 15. exd5 {[%clk 0:02:21.6]}
15... exd5 {[%clk 0:01:36.5]} 16. Nc4 {[%clk 0:02:21.6]} 16... dxc4 {[%clk
0:01:35.8]} 17. dxc4 {[%clk 0:02:20.4]} 17... Bf5 {[%clk 0:01:30.9]} 18. h3
{[%clk 0:02:18.8]} 18... Ne5 {[%clk 0:01:22.9]} 19. Nxe5 {[%clk 0:02:17.6]}
19... Bxe5 {[%clk 0:01:22.4]} 20. Rfe1 {[%clk 0:02:17.6]} 20... Bf6 {[%clk
0:01:21]} 21. Rd5 {[%clk 0:02:13.3]} 21... b6 {[%clk 0:01:18.1]} 22. g4 {[%clk
0:02:12]} 22... Be4 {[%clk 0:01:16.8]} 23. Rxe4 {[%clk 0:02:11]} 23... Rad8
{[%clk 0:01:13.1]} 24. Rxd8 {[%clk 0:02:09.8]} 24... Rxd8 {[%clk 0:01:12.8]} 25.
Re2 {[%clk 0:02:08.4]} 25... Bg5+ {[%clk 0:01:08]} 26. Kb2 {[%clk 0:02:06.6]}
26... Rd2 {[%clk 0:01:04.8]} 27. Re8+ {[%clk 0:02:05.1]} 27... Kg7 {[%clk
0:01:05.1]} 28. f3 {[%clk 0:02:02.5]} 28... Bf6+ {[%clk 0:01:02]} 29. Kc1 {[%clk
0:01:59.6]} 29... Rh2 {[%clk 0:00:57.5]} 30. f4 {[%clk 0:01:55.8]} 30... Bc3
{[%clk 0:00:56.3]} 31. Re3 {[%clk 0:01:53.1]} 31... Rh1+ {[%clk 0:00:55.4]} 32.
Re1 {[%clk 0:01:50.3]} 32... Rxe1# {[%clk 0:00:55.1]} 0-1

[Event "Betsys MČR v online bleskovém šachu 2021"]
[Site "Chess.com"]
[Date "2021.04.17"]
[Round "2"]
[White "horvi1"]
[Black "Mikulas19"]
[Result "1-0"]
[WhiteElo "2233"]
[BlackElo "1888"]
[TimeControl "180+1"]
[EndTime "9:15:02 PDT"]
[Termination "Uživatel horvi1 zvítězil matem"]

1. e4 {[%clk 0:03:00.9]} 1... e5 {[%clk 0:02:59.7]} 2. f4 {[%clk 0:03:00.7]}
2... exf4 {[%clk 0:02:58.8]} 3. Nf3 {[%clk 0:03:00.9]} 3... g5 {[%clk
0:02:58.7]} 4. Bc4 {[%clk 0:03:00.4]} 4... g4 {[%clk 0:02:56.9]} 5. O-O {[%clk
0:02:57.5]} 5... gxf3 {[%clk 0:02:56.8]} 6. Qxf3 {[%clk 0:02:57.3]} 6... Qf6
{[%clk 0:02:55.5]} 7. d3 {[%clk 0:02:56.8]} 7... Bh6 {[%clk 0:02:51.4]} 8. Nc3
{[%clk 0:02:54.1]} 8... c6 {[%clk 0:02:42.4]} 9. e5 {[%clk 0:02:40.3]} 9... Qg6
{[%clk 0:02:22.8]} 10. Ne4 {[%clk 0:02:32.2]} 10... d5 {[%clk 0:01:58]} 11. exd6
{[%clk 0:02:29.4]} 11... Nd7 {[%clk 0:01:57.9]} 12. Bxf4 {[%clk 0:02:23.2]}
12... f5 {[%clk 0:01:50.1]} 13. Ng3 {[%clk 0:02:05.3]} 13... Ngf6 {[%clk
0:01:34.1]} 14. Rae1+ {[%clk 0:02:02.6]} 14... Kd8 {[%clk 0:01:27.7]} 15. Bxh6
{[%clk 0:01:59]} 15... Qxh6 {[%clk 0:01:24.1]} 16. Nxf5 {[%clk 0:01:59.1]} 16...
Qg5 {[%clk 0:01:15.8]} 17. Re7 {[%clk 0:01:51.6]} 17... Qg4 {[%clk 0:00:42.5]}
18. Ng7 {[%clk 0:01:36.2]} 18... Qxf3 {[%clk 0:00:35.3]} 19. Ne6# {[%clk
0:01:35.6]} 1-0

[Event "Betsys MČR v online bleskovém šachu 2021"]
[Site "Chess.com"]
[Date "2021.04.17"]
[Round "2"]
[White "Vesselovsky52"]
[Black "Bartusman"]
[Result "1-0"]
[WhiteElo "2324"]
[BlackElo "1981"]
[TimeControl "180+1"]
[EndTime "9:15:03 PDT"]
[Termination "Uživatel Vesselovsky52 zvítězil po vzdání soupeře"]

1. e4 {[%clk 0:03:00.9]} 1... c5 {[%clk 0:02:58.8]} 2. Ne2 {[%clk 0:02:59]} 2...
g6 {[%clk 0:02:58.5]} 3. g3 {[%clk 0:02:56.1]} 3... Bg7 {[%clk 0:02:58.3]} 4.
Bg2 {[%clk 0:02:55.8]} 4... d6 {[%clk 0:02:58.8]} 5. c3 {[%clk 0:02:54.6]} 5...
Nc6 {[%clk 0:02:50.7]} 6. d4 {[%clk 0:02:54.1]} 6... cxd4 {[%clk 0:02:50.2]} 7.
cxd4 {[%clk 0:02:53.9]} 7... Nf6 {[%clk 0:02:50.5]} 8. Nbc3 {[%clk 0:02:51.4]}
8... O-O {[%clk 0:02:50.2]} 9. O-O {[%clk 0:02:48.4]} 9... a6 {[%clk 0:02:47.7]}
10. h3 {[%clk 0:02:46]} 10... Bd7 {[%clk 0:02:45.6]} 11. Be3 {[%clk 0:02:36.9]}
11... Rc8 {[%clk 0:02:42.4]} 12. f4 {[%clk 0:02:34]} 12... Na5 {[%clk
0:02:35.5]} 13. b3 {[%clk 0:02:32.2]} 13... b5 {[%clk 0:02:17.1]} 14. e5 {[%clk
0:02:28.8]} 14... Ne8 {[%clk 0:02:16.5]} 15. Qd2 {[%clk 0:02:25.7]} 15... e6
{[%clk 0:02:14.4]} 16. Rac1 {[%clk 0:02:15]} 16... d5 {[%clk 0:02:14.1]} 17. Nd1
{[%clk 0:01:56.1]} 17... Nc6 {[%clk 0:02:05.9]} 18. Nb2 {[%clk 0:01:51.1]} 18...
Na5 {[%clk 0:01:40.1]} 19. Nd3 {[%clk 0:01:48.1]} 19... Nb7 {[%clk 0:01:39.4]}
20. Rxc8 {[%clk 0:01:44.5]} 20... Qxc8 {[%clk 0:01:38.6]} 21. Rc1 {[%clk
0:01:43.8]} 21... Qb8 {[%clk 0:01:38.6]} 22. Nc5 {[%clk 0:01:40.5]} 22... Nxc5
{[%clk 0:01:37.2]} 23. dxc5 {[%clk 0:01:36.2]} 23... Bc6 {[%clk 0:01:24.5]} 24.
Nd4 {[%clk 0:01:34.3]} 24... Qb7 {[%clk 0:01:24.8]} 25. Qa5 {[%clk 0:01:27.1]}
25... Nc7 {[%clk 0:01:06]} 26. Qb6 {[%clk 0:01:25.6]} 26... Rb8 {[%clk
0:01:06.1]} 27. Qxc6 {[%clk 0:01:23.3]} 1-0

[Event "Betsys MČR v online bleskovém šachu 2021"]
[Site "Chess.com"]
[Date "2021.04.17"]
[Round "2"]
[White "Patrik_Kohm"]
[Black "Petr_Zacek"]
[Result "1-0"]
[WhiteElo "1370"]
[BlackElo "1778"]
[TimeControl "180+1"]
[EndTime "9:15:04 PDT"]
[Termination "Uživatel Patrik_Kohm zvítězil po vzdání soupeře"]

1. e4 {[%clk 0:03:00.9]} 1... e6 {[%clk 0:02:59.3]} 2. d4 {[%clk 0:03:00.1]}
2... d5 {[%clk 0:02:58.5]} 3. e5 {[%clk 0:03:00]} 3... c5 {[%clk 0:02:57.9]} 4.
c3 {[%clk 0:03:00.4]} 4... Nc6 {[%clk 0:02:57.7]} 5. Nf3 {[%clk 0:03:00.3]} 5...
Qb6 {[%clk 0:02:57.6]} 6. a3 {[%clk 0:02:59.4]} 6... Bd7 {[%clk 0:02:56.8]} 7.
Be2 {[%clk 0:02:57.1]} 7... cxd4 {[%clk 0:02:56.6]} 8. cxd4 {[%clk 0:02:56.2]}
8... Nge7 {[%clk 0:02:56.3]} 9. O-O {[%clk 0:02:55.4]} 9... Nf5 {[%clk
0:02:56.1]} 10. Be3 {[%clk 0:02:51.3]} 10... Nxe3 {[%clk 0:02:56]} 11. fxe3
{[%clk 0:02:51.2]} 11... Qxb2 {[%clk 0:02:45.8]} 12. Nbd2 {[%clk 0:02:48.4]}
12... Qb6 {[%clk 0:02:43.6]} 13. Ng5 {[%clk 0:02:46.6]} 13... Nxe5 {[%clk
0:02:25.1]} 14. Rb1 {[%clk 0:02:35.8]} 14... Qc7 {[%clk 0:02:16.7]} 15. dxe5
{[%clk 0:02:32.7]} 15... Qxe5 {[%clk 0:02:16.4]} 16. Nxf7 {[%clk 0:02:32]} 16...
Qxe3+ {[%clk 0:02:14.9]} 17. Kh1 {[%clk 0:02:32]} 17... Bc6 {[%clk 0:02:11]} 18.
Nxh8 {[%clk 0:02:28.9]} 18... Bd6 {[%clk 0:02:06.3]} 19. Rf3 {[%clk 0:02:17.9]}
19... Qh6 {[%clk 0:02:04.5]} 20. Rh3 {[%clk 0:02:12.3]} 20... Qg5 {[%clk
0:02:00]} 21. Qf1 {[%clk 0:02:04.3]} 21... Qe7 {[%clk 0:01:53.6]} 22. Rf3 {[%clk
0:01:55.1]} 22... O-O-O {[%clk 0:01:35.7]} 23. Nf7 {[%clk 0:01:49.3]} 23... Re8
{[%clk 0:01:26.8]} 24. Nxd6+ {[%clk 0:01:48.6]} 24... Qxd6 {[%clk 0:01:26.8]}
25. Bb5 {[%clk 0:01:39.7]} 25... e5 {[%clk 0:01:20.4]} 26. Bxc6 {[%clk
0:01:38.7]} 26... bxc6 {[%clk 0:01:19.8]} 27. Rfb3 {[%clk 0:01:36.2]} 27... Kd7
{[%clk 0:01:12]} 28. Qf7+ {[%clk 0:01:33.6]} 28... Re7 {[%clk 0:01:11.4]} 29.
Rb7+ {[%clk 0:01:33.2]} 29... Kd8 {[%clk 0:01:09.5]} 30. Rxe7 {[%clk 0:01:29.9]}
1-0

[Event "Betsys MČR v online bleskovém šachu 2021"]
[Site "Chess.com"]
[Date "2021.04.17"]
[Round "2"]
[White "jonasstach"]
[Black "PetrVelicka"]
[Result "0-1"]
[WhiteElo "2005"]
[BlackElo "2384"]
[TimeControl "180+1"]
[EndTime "9:15:06 PDT"]
[Termination "Uživatel PetrVelicka zvítězil po vzdání soupeře"]

1. e4 {[%clk 0:02:59.7]} 1... Nf6 {[%clk 0:02:59.3]} 2. Nc3 {[%clk 0:02:58.4]}
2... e5 {[%clk 0:02:58.4]} 3. f4 {[%clk 0:02:58.2]} 3... d5 {[%clk 0:02:57.1]}
4. fxe5 {[%clk 0:02:57.4]} 4... Nxe4 {[%clk 0:02:56.9]} 5. Nf3 {[%clk
0:02:52.7]} 5... Nc6 {[%clk 0:02:55.1]} 6. d4 {[%clk 0:02:50.3]} 6... Bb4 {[%clk
0:02:51.4]} 7. Bd2 {[%clk 0:02:49.8]} 7... Nxd2 {[%clk 0:02:39.8]} 8. Qxd2
{[%clk 0:02:50.7]} 8... Bg4 {[%clk 0:02:37.1]} 9. Be2 {[%clk 0:02:32.7]} 9...
Bxf3 {[%clk 0:02:36.2]} 10. Bxf3 {[%clk 0:02:32.8]} 10... Qh4+ {[%clk
0:02:35.6]} 11. Kf1 {[%clk 0:02:23.7]} 11... Nxd4 {[%clk 0:02:17.9]} 12. Bxd5
{[%clk 0:01:57.2]} 12... O-O-O {[%clk 0:02:05.9]} 13. Bc4 {[%clk 0:00:38.7]}
13... Nf5 {[%clk 0:01:44.1]} 0-1

[Event "Betsys MČR v online bleskovém šachu 2021"]
[Site "Chess.com"]
[Date "2021.04.17"]
[Round "2"]
[White "krystofkrizek1"]
[Black "JakubPulpan"]
[Result "0-1"]
[WhiteElo "2096"]
[BlackElo "2716"]
[TimeControl "180+1"]
[EndTime "9:15:07 PDT"]
[Termination "Uživatel JakubPulpan zvítězil po vzdání soupeře"]

1. Nf3 {[%clk 0:03:00.9]} 1... Nf6 {[%clk 0:02:59.8]} 2. g3 {[%clk 0:03:01.3]}
2... b6 {[%clk 0:02:53.1]} 3. d4 {[%clk 0:02:58.9]} 3... Bb7 {[%clk 0:02:53]} 4.
Bg2 {[%clk 0:02:57.1]} 4... c5 {[%clk 0:02:49.8]} 5. O-O {[%clk 0:02:48.8]} 5...
cxd4 {[%clk 0:02:49.7]} 6. Qxd4 {[%clk 0:02:42]} 6... e6 {[%clk 0:02:48.3]} 7.
c4 {[%clk 0:02:32.8]} 7... d6 {[%clk 0:02:46.7]} 8. Nc3 {[%clk 0:02:32.4]} 8...
Be7 {[%clk 0:02:46.2]} 9. e4 {[%clk 0:02:27.9]} 9... Nbd7 {[%clk 0:02:44.2]} 10.
Be3 {[%clk 0:02:23.2]} 10... O-O {[%clk 0:02:41.2]} 11. Rad1 {[%clk 0:02:17.4]}
11... a6 {[%clk 0:02:37.4]} 12. Qd3 {[%clk 0:02:02.5]} 12... Qc7 {[%clk
0:02:35.6]} 13. b4 {[%clk 0:01:59.6]} 13... Rac8 {[%clk 0:02:31.5]} 14. Bf4
{[%clk 0:01:12.3]} 14... Qxc4 {[%clk 0:02:29]} 15. e5 {[%clk 0:00:48.9]} 15...
Qxc3 {[%clk 0:02:16.1]} 16. exf6 {[%clk 0:00:46.5]} 16... Qxd3 {[%clk
0:02:08.6]} 17. Rxd3 {[%clk 0:00:47.4]} 17... Nxf6 {[%clk 0:02:08.5]} 18. Bxd6
{[%clk 0:00:47.6]} 18... Rfd8 {[%clk 0:01:35.3]} 19. Rfd1 {[%clk 0:00:46.5]}
19... Rxd6 {[%clk 0:01:35.5]} 20. Rxd6 {[%clk 0:00:46.5]} 20... Bxd6 {[%clk
0:01:36.4]} 0-1

[Event "Betsys MČR v online bleskovém šachu 2021"]
[Site "Chess.com"]
[Date "2021.04.17"]
[Round "2"]
[White "FrantisekP"]
[Black "Hollow_Head"]
[Result "0-1"]
[WhiteElo "1625"]
[BlackElo "1060"]
[TimeControl "180+1"]
[EndTime "9:15:08 PDT"]
[Termination "Uživatel Hollow_Head zvítězil matem"]

1. d4 {[%clk 0:03:00.9]} 1... d5 {[%clk 0:02:58.8]} 2. Bf4 {[%clk 0:02:58]} 2...
Nc6 {[%clk 0:02:58.9]} 3. e3 {[%clk 0:02:58.1]} 3... Nf6 {[%clk 0:02:58.2]} 4.
c3 {[%clk 0:02:56.8]} 4... Bd7 {[%clk 0:02:58.2]} 5. Bd3 {[%clk 0:02:57.1]} 5...
e6 {[%clk 0:02:58.4]} 6. Nf3 {[%clk 0:02:56.3]} 6... Bd6 {[%clk 0:02:58]} 7. Ne5
{[%clk 0:02:52.2]} 7... Nxe5 {[%clk 0:02:57.1]} 8. dxe5 {[%clk 0:02:53.1]} 8...
Bxe5 {[%clk 0:02:48.9]} 9. Bxe5 {[%clk 0:02:54]} 9... Ng4 {[%clk 0:02:48.5]} 10.
Bg3 {[%clk 0:02:51.1]} 10... Nf6 {[%clk 0:02:46.5]} 11. Nd2 {[%clk 0:02:47.4]}
11... Qe7 {[%clk 0:02:47]} 12. Be5 {[%clk 0:02:38.6]} 12... O-O {[%clk
0:02:46.7]} 13. Bxc7 {[%clk 0:02:22.1]} 13... Bc6 {[%clk 0:02:45.5]} 14. Be5
{[%clk 0:02:21.1]} 14... Ne4 {[%clk 0:02:43.9]} 15. Qg4 {[%clk 0:01:47.9]} 15...
g6 {[%clk 0:02:36.2]} 16. Nxe4 {[%clk 0:01:39.3]} 16... dxe4 {[%clk 0:02:35.6]}
17. Bxe4 {[%clk 0:01:36.5]} 17... Bxe4 {[%clk 0:02:36.5]} 18. Qxe4 {[%clk
0:01:36.8]} 18... Rad8 {[%clk 0:02:37.1]} 19. Qf3 {[%clk 0:01:26.6]} 19... Rd5
{[%clk 0:02:33.4]} 20. Bf6 {[%clk 0:01:23.4]} 20... Qd7 {[%clk 0:02:26.4]} 21.
Bd4 {[%clk 0:01:05.4]} 21... e5 {[%clk 0:02:24.7]} 22. Bxa7 {[%clk 0:01:01.5]}
22... Rd8 {[%clk 0:02:19.5]} 23. O-O {[%clk 0:00:58.9]} 23... Ra8 {[%clk
0:02:17.5]} 24. Bb6 {[%clk 0:00:48.1]} 24... Ra6 {[%clk 0:02:11]} 25. Rfd1
{[%clk 0:00:38.7]} 25... Rxd1+ {[%clk 0:02:06.6]} 26. Rxd1 {[%clk 0:00:39.6]}
26... Qa4 {[%clk 0:02:02.6]} 27. Qxb7 {[%clk 0:00:24.9]} 27... Qxd1# {[%clk
0:01:59.9]} 0-1

[Event "Betsys MČR v online bleskovém šachu 2021"]
[Site "Chess.com"]
[Date "2021.04.17"]
[Round "2"]
[White "misa2009"]
[Black "hoacin"]
[Result "0-1"]
[WhiteElo "1503"]
[BlackElo "2483"]
[TimeControl "180+1"]
[EndTime "9:15:11 PDT"]
[Termination "Uživatel hoacin zvítězil matem"]

1. e4 {[%clk 0:03:00.9]} 1... c5 {[%clk 0:02:59.5]} 2. Nf3 {[%clk 0:03:00.5]}
2... d6 {[%clk 0:02:59.2]} 3. c3 {[%clk 0:03:00.4]} 3... Nf6 {[%clk 0:02:58.7]}
4. Qc2 {[%clk 0:03:00.5]} 4... Nc6 {[%clk 0:02:57.7]} 5. d4 {[%clk 0:02:58.6]}
5... cxd4 {[%clk 0:02:56.5]} 6. cxd4 {[%clk 0:02:58.5]} 6... Bd7 {[%clk
0:02:55.1]} 7. Nc3 {[%clk 0:02:58.1]} 7... Rc8 {[%clk 0:02:54.1]} 8. Be3 {[%clk
0:02:55.1]} 8... g5 {[%clk 0:02:46.7]} 9. Bxg5 {[%clk 0:02:48.7]} 9... Bg7
{[%clk 0:02:41.6]} 10. d5 {[%clk 0:02:41.8]} 10... Nb4 {[%clk 0:02:38.9]} 11.
Qb3 {[%clk 0:02:37.8]} 11... Nxe4 {[%clk 0:02:26]} 12. Nxe4 {[%clk 0:02:30.2]}
12... Nc2+ {[%clk 0:02:24.1]} 13. Kd1 {[%clk 0:02:28.6]} 13... Nxa1 {[%clk
0:02:23.3]} 14. Qe3 {[%clk 0:02:09.9]} 14... O-O {[%clk 0:02:17.1]} 15. Bh6
{[%clk 0:02:06.7]} 15... Bxb2 {[%clk 0:02:06.6]} 16. Qg5+ {[%clk 0:02:01.7]}
16... Kh8 {[%clk 0:02:06.1]} 17. Nh4 {[%clk 0:01:39]} 17... Rg8 {[%clk
0:01:56.9]} 18. Qf4 {[%clk 0:01:37.3]} 18... Ba4+ {[%clk 0:01:53.9]} 19. Ke1
{[%clk 0:01:32.7]} 19... Qa5+ {[%clk 0:01:52.4]} 20. Ke2 {[%clk 0:01:31.4]}
20... Rc1 {[%clk 0:01:43]} 21. Qxf7 {[%clk 0:01:20.2]} 21... Bd1+ {[%clk
0:01:40]} 22. Ke3 {[%clk 0:01:19]} 22... Rc3+ {[%clk 0:01:30.2]} 23. Nxc3 {[%clk
0:01:15.4]} 23... Qxc3+ {[%clk 0:01:27.1]} 24. Bd3 {[%clk 0:01:14.5]} 24... Bc1+
{[%clk 0:01:25.8]} 25. Ke4 {[%clk 0:01:13.5]} 25... Qb4+ {[%clk 0:01:19.1]} 26.
Kf5 {[%clk 0:01:08.2]} 26... Bg4# {[%clk 0:01:17.2]} 0-1

[Event "Betsys MČR v online bleskovém šachu 2021"]
[Site "Chess.com"]
[Date "2021.04.17"]
[Round "2"]
[White "honzasoucek"]
[Black "Berzeger"]
[Result "1-0"]
[WhiteElo "1639"]
[BlackElo "1022"]
[TimeControl "180+1"]
[EndTime "9:15:11 PDT"]
[Termination "Uživatel honzasoucek zvítězil po vzdání soupeře"]

1. e4 {[%clk 0:03:00.2]} 1... e5 {[%clk 0:03:00.2]} 2. Nf3 {[%clk 0:03:00.6]}
2... Nc6 {[%clk 0:03:00.7]} 3. d4 {[%clk 0:03:01.1]} 3... d6 {[%clk 0:02:57.5]}
4. Nc3 {[%clk 0:02:57.8]} 4... exd4 {[%clk 0:02:55.4]} 5. Nxd4 {[%clk
0:02:57.2]} 5... Nxd4 {[%clk 0:02:53.2]} 6. Qxd4 {[%clk 0:02:56.4]} 6... Nf6
{[%clk 0:02:50.6]} 7. Bg5 {[%clk 0:02:54.5]} 7... h6 {[%clk 0:02:48.2]} 8. Bh4
{[%clk 0:02:50.5]} 8... Be7 {[%clk 0:02:45.4]} 9. O-O-O {[%clk 0:02:47.5]} 9...
Be6 {[%clk 0:02:38.2]} 10. f3 {[%clk 0:02:43.4]} 10... c5 {[%clk 0:02:29.4]} 11.
Bb5+ {[%clk 0:02:40.2]} 11... Bd7 {[%clk 0:02:29]} 12. Qd3 {[%clk 0:02:28.6]}
12... O-O {[%clk 0:02:24.2]} 13. Bxd7 {[%clk 0:01:57.5]} 13... Qxd7 {[%clk
0:02:25.1]} 14. e5 {[%clk 0:01:46.7]} 14... dxe5 {[%clk 0:02:03.5]} 15. Qxd7
{[%clk 0:01:45.1]} 15... Nxd7 {[%clk 0:02:03.7]} 16. Bxe7 {[%clk 0:01:45.4]}
16... Nb6 {[%clk 0:01:35.1]} 17. Bxf8 {[%clk 0:01:42.7]} 17... Rxf8 {[%clk
0:01:36]} 18. Ne4 {[%clk 0:01:34.3]} 18... Nc4 {[%clk 0:01:29]} 19. b3 {[%clk
0:01:29.7]} 19... Ne3 {[%clk 0:01:26.8]} 20. Rd2 {[%clk 0:01:29.5]} 20... b6
{[%clk 0:01:23.4]} 21. g4 {[%clk 0:01:26.9]} 21... g6 {[%clk 0:01:15.2]} 22. Re1
{[%clk 0:01:26.2]} 22... Ng2 {[%clk 0:01:08.5]} 23. Rxg2 {[%clk 0:01:24.9]}
23... f5 {[%clk 0:01:08]} 24. gxf5 {[%clk 0:01:24.4]} 24... Rxf5 {[%clk
0:01:06.6]} 25. Rxg6+ {[%clk 0:01:24.8]} 25... Kf7 {[%clk 0:01:05.7]} 26. Rxh6
{[%clk 0:01:17.2]} 26... Rxf3 {[%clk 0:01:06.2]} 27. Ng5+ {[%clk 0:01:16.8]} 1-0